fUSD/lending_fUSD_20240223
["ID","MTS","AMOUNT","RATE_DAILY","PERIOD"]
[314923400,1708661441419,-156.42,0.00028744,2]
[314923401,1708661441429,-1000.0,0.00028764,7]
[314923402,1708661441438,-1297.41883186,0.00028764,6]
[314923403,1708661441447,-194.63121023,0.00028764,4]
[314923404,1708661441457,-810.46378264,0.00028764,6]
[314923405,1708661441466,-1000.0,0.00028764,7]
[314923406,1708661441476,-1770.27005391,0.00028764,6]
[314923407,1708661441485,-247.87755731,0.00028764,4]
[314923408,1708661441495,-810.02218174,0.00028764,6]
[314923409,1708661441504,-1000.0,0.00028764,7]
[314923410,1708661441514,-497.24582641,0.00028764,5]
[314923411,1708661441523,-1000.0,0.00028764,7]
[314923412,1708661441532,-216.10167012,0.00028764,5]
[314923413,1708661441542,-2258.22748792,0.00028764,6]
[314923414,1708661441552,-1000.0,0.00028764,7]
[314923415,1708661441562,-2322.0,0.00028767,2]
[314923416,1708661441573,-767.42,0.0002879,2]
[314923417,1708661441582,-190.63857177,0.00028798,2]
[314923418,1708661441592,-45821.9673794,0.000288,2]
[314923419,1708661441810,-4102.14,0.00028279,10]
[314923420,1708661441820,-53096.9876964,0.000288,2]
[314923421,1708661441830,-4128.9,0.00028822,2]
[314923422,1708661441839,-207.13487753,0.0002888,2]
[314923423,1708661441849,-1182.48,0.00029,2]
[314923424,1708661441859,-1001.41,0.00029,2]
[314923425,1708661441868,-82934.67,0.00029,2]
[314923426,1708661441878,-156.42,0.00029026,2]
[314923427,1708661441887,-164.66,0.00029146,2]
[314923428,1708661441898,-1375.52111017,0.0002921,4]
[314923429,1708661441908,-168.21026662,0.0002925,2]
[314923430,1708661441918,-370.37,0.00029259,2]
[314923431,1708661441928,-87429.89170983,0.0002926,2]
[314923432,1708661441958,-405.80371586,0.0002926,2]
[314923433,1708661441970,-268.12500045,0.0002926,2]
[314923440,1708661443072,-823.52658831,0.0002926,2]
[314923441,1708661443192,-511.66128,0.0002926,2]
[314923442,1708661443204,-1016.54759853,0.0002926,2]
[314923449,1708661446294,-254.64355289,0.0002926,2]
[314923451,1708662072231,5000.0,0.0002702,7]
[314923460,1708662632100,-314.81,0.0002468,2]
[314923461,1708662632110,-350.15306147,0.00024891,2]
[314923462,1708662632183,-1561.7782849,0.00024891,2]
[314923463,1708662632193,-402.3990628,0.00024892,2]
[314923464,1708662632258,-668.81670017,0.00024892,2]
[314923465,1708662632269,-387.20108021,0.00024892,2]
[314923466,1708662632278,-386.0,0.00026089,2]
[314923467,1708662632288,-154.0,0.00026429,2]
[314923468,1708662632297,-47.71816812,0.00026551,2]
[314923469,1708662632308,-1392.79107502,0.00026551,2]
[314923470,1708662632335,-559.49075686,0.00026551,2]
[314923471,1708662632344,-18.08760794,0.00026551,2]
[314923472,1708662632356,-156.56239206,0.00026551,2]
[314923473,1708662632366,-250.0,0.00026556,2]
[314923474,1708662632376,-157.61,0.00026589,2]
[314923475,1708662632386,-445.96,0.00026597,2]
[314923476,1708662632396,-250.0,0.00026597,2]
[314923477,1708662632407,-288.0,0.00026618,2]
[314923478,1708662632417,-169.43852302,0.00026637,2]
[314923479,1708662632432,-216.56147698,0.00026637,2]
[314923480,1708662632441,-1391.42106605,0.00026795,2]
[314923481,1708662632453,-178.22893395,0.00026795,2]
[314923482,1708662632462,-233.8170046,0.00026943,2]
[314923483,1708662632483,-80.9929954,0.00026943,2]
[314923484,1708662632493,-1211.55690823,0.00026972,2]
[314923485,1708662632505,-609.53309177,0.00026972,2]
[314923486,1708662632515,-154.0,0.00026977,2]
[314923488,1708662632524,-157.0,0.00027128,2]
[314923489,1708662632532,-386.0,0.00027185,2]
[314923491,1708662632541,-42.23745585,0.00027195,2]
[314923493,1708662632553,-415.80981497,0.00027195,2]
[314923495,1708662632578,-253.95272918,0.00027195,2]
[314923496,1708662632587,-200.0,0.000274,2]
[314923497,1708662632596,-157.0,0.00027515,2]
[314923498,1708662632606,-154.0,0.00027525,2]
[314923499,1708662632616,-186.79772284,0.00027733,2]
[314923500,1708662632627,-199.20227716,0.00027733,2]
[314923501,1708662632636,-208.0,0.00027742,2]
[314923502,1708662632645,-798.01276139,0.000279,2]
[314923503,1708662632657,-1201.98723861,0.000279,2]
[314923504,1708662632667,-151.28913439,0.00027903,2]
[314923505,1708662632678,-5.71086561,0.00027903,2]
[314923506,1708662632687,-438.08658447,0.0002799,2]
[314923507,1708662632698,-561.91341553,0.0002799,2]
[314923508,1708662632707,-1802.1,0.00027998,2]
[314923509,1708662632716,-1782.05,0.00027998,2]
[314923510,1708662632725,-1840.35265195,0.00027998,2]
[314923511,1708662632737,-3.39734805,0.00027998,2]
[314923512,1708662632747,-1814.99,0.00027998,2]
[314923513,1708662632756,-1788.69,0.00027998,2]
[314923514,1708662632765,-154.0,0.00028073,2]
[314923515,1708662632774,-178.8122756,0.00028179,10]
[314923516,1708662632786,-476.73648322,0.00028179,10]
[314923517,1708662632802,-2762.90124118,0.00028179,10]
[314923518,1708662632811,-291.19287655,0.00028188,2]
[314923519,1708662632820,-687.636,0.00028189,2]
[314923520,1708662632829,-13619.7828101,0.00028189,2]
[314923521,1708662632841,-639.91916815,0.00028189,2]
[314923523,1708662638089,-5386.87431317,0.00028189,2]
[314923524,1708662638100,-953.62380372,0.00028189,2]
[314923525,1708662638260,-4149.29096954,0.00028189,2]
[314923526,1708662638271,-2086.03578028,0.00028189,2]
[314923531,1708662644039,-3071.53106621,0.00028189,2]
[314923551,1708662646230,-2848.7,0.00028179,10]
[314923552,1708662646239,-3563.57081602,0.00028189,2]
[314923553,1708662646251,-1404.07586516,0.00028189,2]
[314923554,1708662646281,-1911.93134637,0.00028188,2]
[314923555,1708662646290,-2177.90703396,0.00028189,2]
[314923556,1708662646446,-873.88559492,0.00028189,2]
[314923557,1708662646458,-512.4,0.00028189,2]
[314923572,1708663119505,283.32,0.00024156,2]
[314923577,1708663563468,269.15,0.00023747,2]
[314923578,1708663656112,8268.481274,0.00024488,2]
[314923584,1708663832450,-610.44814184,0.000246,2]
[314923585,1708663832478,-604.89922748,0.000246,2]
[314923586,1708663832488,-485.73381817,0.00024601,2]
[314923587,1708663832497,-155.0,0.00024602,2]
[314923588,1708663832506,-1911.93134637,0.00024602,2]
[314923589,1708663832516,-207.0,0.00024742,2]
[314923590,1708663832525,-833.57140238,0.000254,2]
[314923591,1708663832534,-1806.45,0.00025607,2]
[314923592,1708663832543,-1753.2742056,0.00025608,2]
[314923593,1708663832554,-31.7057944,0.00025608,2]
[314923594,1708663832563,-312.50661943,0.00025608,2]
[314923595,1708663832574,-559.82747446,0.00025608,2]
[314923596,1708663832598,-959.41590611,0.00025608,2]
[314923597,1708663832607,-1055.65948765,0.00025608,2]
[314923598,1708663832618,-679.70803117,0.00025608,2]
[314923599,1708663832629,-84.05248118,0.00025608,2]
[314923600,1708663832639,-391.21517413,0.00025661,2]
[314923601,1708663832650,-266.1619309,0.00025661,2]
[314923602,1708663832678,-112.22289497,0.00025661,2]
[314923603,1708663832687,-404.1,0.00025691,2]
[314923604,1708663832696,-9241.91690039,0.00025698,2]
[314923605,1708663832707,-9424.79309961,0.00025698,2]
[314923606,1708663832717,-250.0,0.00025728,2]
[314923608,1708663832726,-1826.15,0.0002574,2]
[314923610,1708663832735,-1801.48,0.0002574,2]
[314923612,1708663832744,-1783.49,0.0002574,2]
[314923614,1708663832753,-2000.0,0.00025749,2]
[314923615,1708663832762,-1786.25,0.00025837,2]
[314923616,1708663832771,-230.4,0.00025841,2]
[314923617,1708663832780,-1367.58,0.00025862,2]
[314923618,1708663832789,-159.12,0.00025862,2]
[314923619,1708663832798,-175.35832162,0.0002587,2]
[314923620,1708663832807,-157.86,0.00025877,2]
[314923621,1708663832816,-1777.7,0.0002597,2]
[314923622,1708663832824,-1788.91,0.00025971,2]
[314923623,1708663832833,-1825.39,0.00025973,2]
[314923624,1708663832842,-8988.801684,0.00026,3]
[314923625,1708663832851,-1379.34814666,0.00026,2]
[314923638,1708663839233,-413.99185334,0.00026,2]
[314923639,1708663839242,-171.7,0.0002601,2]
[314923640,1708663839252,-269.15,0.00026011,2]
[314923641,1708663839262,-1824.4,0.00026105,2]
[314923642,1708663839271,-1698.07056669,0.00026105,2]
[314923643,1708663839344,-88.43943331,0.00026105,2]
[314923644,1708663839353,-1806.48,0.00026105,2]
[314923645,1708663839364,-1792.7,0.00026238,2]
[314923646,1708663839374,-1827.74,0.00026238,2]
[314923647,1708663839384,-1777.8,0.00026241,2]
[314923648,1708663839393,-1776.23,0.00026241,2]
[314923649,1708663839402,-1820.0,0.00026241,2]
[314923650,1708663839411,-1842.94,0.00026299,2]
[314923651,1708663839420,-1778.06,0.00026334,2]
[314923652,1708663839430,-1835.83,0.00026344,2]
[314923653,1708663839439,-1774.29,0.00026345,2]
[314923654,1708663839448,-1824.9,0.00026347,2]
[314923655,1708663839458,-1776.94,0.00026347,2]
[314923656,1708663839468,-1796.14,0.00026347,2]
[314923657,1708663839478,-199.0,0.00026349,2]
[314923658,1708663839487,-157.55,0.00026589,2]
[314923659,1708663839496,-199.0,0.00026897,2]
[314923660,1708663839505,-404.1,0.00027335,2]
[314923661,1708663839514,-159.33,0.00027397,2]
[314923662,1708663839523,-199.0,0.00027445,2]
[314923663,1708663839532,-5401.6744,0.00027566,2]
[314923664,1708663839542,-1807.95,0.00027666,2]
[314923665,1708663839551,-430.12,0.00027808,2]
[314923666,1708663839560,-917.7,0.00027808,2]
[314923667,1708663839569,-1819.76,0.00027915,2]
[314923668,1708663839578,-199.0,0.00027993,2]
[314923669,1708663839587,-511.1224,0.00028078,2]
[314923670,1708663839596,-2373.92,0.00028079,10]
[314923671,1708663839605,-1031.64083268,0.00028089,3]
[314923672,1708663839615,-6057.4333,0.00028089,2]
[314923673,1708663839624,-275.5206,0.00028089,2]
[314923674,1708663839633,-1000.0,0.00028089,2]
[314923675,1708663839642,-19195.9939,0.00028089,2]
[314923676,1708663839651,-11613.31916683,0.00028178,2]
[314923677,1708663839660,-697.2,0.00028179,2]
[314923678,1708663839669,-10586.17596718,0.00028189,4]
[314923679,1708663840952,-518.51,0.00028,2]
[314923681,1708663841004,-300.0,0.00028,2]
[314923682,1708663841017,-1294.49,0.00028,2]
[314923683,1708663841026,-65949.02957977,0.00028189,4]
[314923695,1708663846310,-633.19597941,0.00028188,2]
[314923696,1708663846323,-297.2541117,0.00028188,2]
[314923697,1708663846332,-35893.68449668,0.00028189,4]
[314923698,1708663846344,-17046.44018441,0.00028189,4]
[314923699,1708663846528,-15804.51603253,0.00028189,4]
[314923700,1708663846638,-7640.73644509,0.00028189,4]
[314923701,1708663846650,-2263.82472845,0.00028189,4]
[314923702,1708663846662,-14859.6,0.00028189,4]
[314923705,1708664032059,234837.28655126,0.00023,2]
[314923713,1708664740339,1399.61982032,0.00023,2]
[314923716,1708664956117,-272.23060673,0.000246,2]
[314923726,1708665031537,-518.79841674,0.000246,2]
[314923727,1708665031550,-1120.9023229,0.000246,2]
[314923728,1708665031560,-148.82278884,0.000246,2]
[314923729,1708665031596,-484.37319057,0.000246,2]
[314923730,1708665031606,-220.0,0.00024601,2]
[314923731,1708665031616,-86.87503328,0.00024601,2]
[314923732,1708665031628,-94.12496672,0.00024601,2]
[314923733,1708665031642,-180.0,0.00024696,2]
[314923734,1708665031651,-439.0,0.00024696,2]
[314923735,1708665031660,-155.0,0.00024985,2]
[314923736,1708665031670,-123.21460828,0.00025,3]
[314923737,1708665031683,-626.78539172,0.00025,3]
[314923738,1708665031692,-175.35832162,0.0002509,2]
[314923739,1708665031702,-204.0,0.00025444,2]
[314923740,1708665031712,-150.0,0.00025518,2]
[314923741,1708665031722,-300.0,0.00025518,2]
[314923742,1708665031732,-7131.01636272,0.00025519,2]
[314923743,1708665031742,-64.38357867,0.00025669,2]
[314923744,1708665031779,-866.30438943,0.00025669,2]
[314923745,1708665031791,-208.9620319,0.00025669,2]
[314923746,1708665031801,-183.0,0.00026357,2]
[314923747,1708665031810,-183.0,0.00026357,2]
[314923748,1708665031819,-604.6878766,0.00026523,2]
[314923749,1708665031831,-450.25,0.00026523,2]
[314923750,1708665031842,-726.02574834,0.00026523,2]
[314923751,1708665031854,-219.03637506,0.00026523,2]
[314923752,1708665031863,-269.4,0.00026535,2]
[314923753,1708665031872,-254.66,0.00026931,2]
[314923754,1708665031881,-74.57691735,0.00026931,2]
[314923755,1708665031893,-175.42308265,0.00026931,2]
[314923756,1708665031902,-615.68,0.00026997,2]
[314923757,1708665031911,-384.32,0.00027153,2]
[314923758,1708665031921,-1772.7191486,0.00027397,2]
[314923759,1708665031956,-693.28277571,0.00027397,2]
[314923760,1708665031968,-842.26534996,0.00027397,2]
[314923761,1708665031979,-1531.9762125,0.00027397,2]
[314923777,1708665037610,-264.52,0.0002549,2]
[314923778,1708665037620,-1141.5752119,0.00027397,2]
[314923779,1708665037643,-2974.50130133,0.00027397,2]
[314923780,1708665037653,-17718.13440962,0.00027397,2]
[314923781,1708665037730,-381.34918907,0.00027397,2]
[314923782,1708665037781,-1900.50640131,0.00027397,2]
[314923783,1708665037790,-200.0,0.000274,2]
[314923784,1708665037800,-264.52,0.00027754,2]
[314923785,1708665037809,-1367.09088413,0.00027778,2]
[314923790,1708665040769,-445.39911587,0.00027778,2]
[314923791,1708665040779,-161.32,0.00027782,2]
[314923792,1708665040788,-208.0,0.00027793,2]
[314923793,1708665040797,-1040.0,0.00027852,2]
[314923794,1708665040808,-1837.21,0.00027875,2]
[314923795,1708665040817,-1830.05,0.00027898,2]
[314923796,1708665040827,-1781.67,0.000279,2]
[314923797,1708665040838,-2000.0,0.000279,2]
[314923798,1708665040849,-1778.11,0.000279,2]
[314923799,1708665040859,-1108.79,0.00028079,10]
[314923800,1708665040869,-155.567625,0.00028088,2]
[314923801,1708665040883,-1000.0,0.00028089,2]
[314923802,1708665040893,-5323.56285686,0.00028089,2]
[314923803,1708665040905,-38406.68654735,0.00028089,2]
[314923804,1708665040918,-40214.04331768,0.00028089,2]
[314923805,1708665040931,-11819.346747,0.00028089,2]
[314923806,1708665040956,-1182.34413771,0.00028089,2]
[314923816,1708665042741,-475.15626566,0.00028079,10]
[314923820,1708665045498,-528.49303134,0.00028079,10]
[314923821,1708665045560,-789.820703,0.00028079,10]
[314923822,1708665045570,-1313.3807002,0.00028089,2]
[314923823,1708665045610,-650.57492534,0.00028089,2]
[314923824,1708665045720,-1209.56013826,0.00028089,2]
[314923825,1708665045733,-61060.6617296,0.00028089,2]
[314923826,1708665045743,-187.0,0.0002809,2]
[314923827,1708665045752,-204.0,0.00028155,2]
[314923828,1708665045762,-269.4,0.00028178,2]
[314923829,1708665045771,-1786.81,0.00028179,2]
[314923830,1708665045781,-1787.92,0.00028179,2]
[314923831,1708665045791,-9790.82537149,0.00028189,4]
[314923832,1708665045800,-164.49282446,0.00028189,2]
[314923833,1708665045810,-1469.3176206,0.00028189,2]
[314923834,1708665045819,-1812.01,0.00028189,2]
[314923835,1708665045829,-157.0,0.0002829,2]
[314923836,1708665045839,-158.0,0.00028316,2]
[314923837,1708665045848,-627.48,0.00028359,2]
[314923838,1708665045858,-213.587,0.00028369,2]
[314923839,1708665045867,-639.422,0.00028369,2]
[314923840,1708665045877,-1868.0,0.00028369,2]
[314923841,1708665045886,-2695.0,0.00028369,2]
[314923843,1708665045895,-458.0,0.00028369,2]
[314923845,1708665045905,-533.0,0.00028369,2]
[314923847,1708665045914,-955.0,0.00028369,2]
[314923848,1708665045923,-1231.0,0.00028369,2]
[314923849,1708665045934,-1953.0,0.00028369,2]
[314923850,1708665045943,-216.0,0.00028369,2]
[314923852,1708665045953,-1257.0,0.00028369,2]
[314923854,1708665045963,-415.913,0.00028369,2]
[314923856,1708665045972,-1006.0,0.00028369,2]
[314923858,1708665045982,-325.267,0.00028369,2]
[314923860,1708665045992,-571.579,0.00028369,2]
[314923863,1708665046001,-398.151,0.00028369,2]
[314923865,1708665046011,-946.584,0.00028369,2]
[314923867,1708665046020,-338.0,0.00028369,2]
[314923869,1708665046029,-1138.0,0.00028369,2]
[314923871,1708665046038,-322.0,0.00028369,2]
[314923873,1708665046048,-390.0,0.00028369,2]
[314923875,1708665046057,-454.0,0.00028369,2]
[314923877,1708665046067,-199.0,0.00028541,2]
[314923879,1708665046076,-157.0,0.00028678,2]
[314923881,1708665046085,-1011.0,0.000287,2]
[314923883,1708665046094,-791.61464918,0.00028764,7]
[314923885,1708665046106,-208.38535082,0.00028764,7]
[314923887,1708665046116,-1000.0,0.00028764,7]
[314923889,1708665046125,-1000.0,0.00028764,7]
[314923891,1708665046135,-1141.52475421,0.00028764,6]
[314923893,1708665046144,-1000.0,0.00028764,7]
[314923895,1708665046153,-594.70457312,0.00028764,6]
[314923897,1708665046163,-531.06980375,0.00028764,6]
[314923899,1708665046172,-940.04796821,0.00028764,6]
[314923902,1708665046182,-698.48029866,0.00028764,6]
[314923904,1708665046192,-165.149251,0.00028764,6]
[314923906,1708665046201,-2014.97718615,0.00028764,7]
[314923908,1708665046210,-158.0,0.00028864,2]
[314923910,1708665046219,-1011.0,0.000289,2]
[314923912,1708665046228,-500.0,0.00029,2]
[314923914,1708665046238,-156.12237955,0.00029,2]
[314923916,1708665046248,-800.0,0.00029025,2]
[314923917,1708665046257,-200.0,0.00029026,2]
[314923920,1708665046267,-800.0,0.00029026,2]
[314923922,1708665046277,-800.0,0.00029026,2]
[314923924,1708665046286,-157.0,0.00029065,2]
[314923925,1708665046295,-199.0,0.00029089,2]
[314923928,1708665046305,-902.68572856,0.0002916,4]
[314923930,1708665046314,-1411.20723226,0.00029163,2]
[314923932,1708665046331,-88.79276774,0.00029163,2]
[314923934,1708665046340,-200.0,0.0002923,2]
[314923936,1708665046350,-3387.32969965,0.00029256,2]
[314923939,1708665046361,-664.13032255,0.00029256,2]
[314923941,1708665046372,-731.90062338,0.00029256,2]
[314923943,1708665046384,-1998.64139558,0.00029256,2]
[314923945,1708665046393,-150.01,0.00029259,2]
[314923947,1708665046403,-3404.33834322,0.00029259,2]
[314923950,1708665046421,-54598.95134497,0.0002926,2]
[314923953,1708665046435,-86807.9966613,0.0002926,2]
[314923998,1708665046854,-6309.7579731,0.0002926,2]
[314924001,1708665046867,-41236.22411329,0.0002926,2]
[314924004,1708665046891,-280.21103288,0.0002926,2]
[314924007,1708665046910,-2817.35847753,0.0002926,2]
[314924009,1708665046919,-599.9970623,0.0002926,2]
[314924011,1708665046929,-431.29834223,0.0002926,2]
[314924038,1708666231769,-885.02401705,0.00026147,2]
[314924039,1708666231782,-1026.90732932,0.00026147,2]
[314924040,1708666231792,-490.76882358,0.00026156,2]
[314924041,1708666231821,-142.42715583,0.00026156,2]
[314924042,1708666231830,-238.06,0.00026157,2]
[314924043,1708666231840,-157.74810307,0.00026249,2]
[314924044,1708666231849,-208.2921563,0.00026349,2]
[314924045,1708666231861,-259.7078437,0.00026349,2]
[314924046,1708666231871,-468.0,0.00027171,2]
[314924047,1708666231881,-200.0,0.000274,2]
[314924048,1708666231891,-250.0,0.00027482,2]
[314924049,1708666231900,-250.0,0.00027753,2]
[314924050,1708666231910,-323.49,0.00027823,2]
[314924051,1708666231919,-499.99,0.00027823,2]
[314924052,1708666231930,-1177.31548028,0.00027825,2]
[314924053,1708666232652,-822.68451972,0.00027825,2]
[314924054,1708666232661,-89.14227566,0.00027842,10]
[314924055,1708666232672,-107.81772434,0.00027842,10]
[314924056,1708666232682,-300.0,0.00027899,2]
[314924057,1708666232691,-121.05712372,0.000279,2]
[314924058,1708666232704,-391.73008624,0.000279,2]
[314924059,1708666232717,-321.16565532,0.000279,2]
[314924060,1708666232731,-1166.04713472,0.000279,2]
[314924061,1708666232741,-150.0,0.00027906,2]
[314924062,1708666232752,-1000.0,0.0002796,2]
[314924063,1708666232762,-248.0,0.00027993,2]
[314924064,1708666232771,-401.62010861,0.00027993,2]
[314924065,1708666232783,-340.42989139,0.00027993,2]
[314924066,1708666232793,-162.05,0.00028065,2]
[314924067,1708666232802,-521.49632943,0.00028121,2]
[314924068,1708666232814,-1034.73564555,0.00028121,2]
[314924069,1708666232825,-1.45802502,0.00028121,2]
[314924070,1708666232834,-157.0,0.00028187,2]
[314924071,1708666232843,-1953.0,0.00028318,2]
[314924072,1708666232853,-1231.0,0.00028318,2]
[314924073,1708666232862,-216.0,0.00028318,2]
[314924074,1708666232872,-303.034,0.00028318,2]
[314924075,1708666232881,-302.0,0.00028318,2]
[314924076,1708666232890,-390.0,0.00028318,2]
[314924077,1708666232899,-2693.0,0.00028318,2]
[314924078,1708666232908,-968.88326455,0.00028318,2]
[314924079,1708666232934,-71.11673545,0.00028318,2]
[314924080,1708666232943,-201.069,0.00028318,2]
[314924081,1708666232952,-458.0,0.00028318,2]
[314924082,1708666232961,-213.67331434,0.00028318,2]
[314924083,1708666232972,-544.99739025,0.00028318,2]
[314924084,1708666232986,-196.32929541,0.00028318,2]
[314924085,1708666232995,-238.06,0.00028421,2]
[314924086,1708666233007,-158.32,0.00028473,2]
[314924087,1708666233018,-217.41305116,0.00028764,6]
[314924088,1708666233037,-61.25697255,0.00028764,6]
[314924089,1708666233049,-193.48550778,0.00028764,6]
[314924090,1708666233060,-250.0,0.00028764,6]
[314924091,1708666233071,-32.53189287,0.00028764,6]
[314924092,1708666233085,-156.08431392,0.00028764,6]
[314924093,1708666233097,-155.75741186,0.00028764,6]
[314924094,1708666233110,-477.15877295,0.00028764,6]
[314924095,1708666233119,-222.74788757,0.00028764,6]
[314924096,1708666233130,-159.30638334,0.00028767,2]
[314924097,1708666233142,-246.98361666,0.00028767,2]
[314924098,1708666233150,-917.7,0.00028767,2]
[314924099,1708666233160,-150.0,0.00028808,2]
[314924100,1708666233169,-248.0,0.00028815,2]
[314924101,1708666233178,-2010.16,0.00029,2]
[314924102,1708666233188,-150.0,0.00029016,2]
[314924103,1708666233198,-200.0,0.00029026,2]
[314924104,1708666233208,-800.0,0.00029026,2]
[314924105,1708666233217,-864.91,0.0002909,10]
[314924106,1708666233227,-1350.41,0.0002909,10]
[314924107,1708666233236,-312.20942476,0.0002909,10]
[314924116,1708666237718,-532.24118287,0.000291,2]
[314924120,1708666237775,-668.83792218,0.000291,2]
[314924121,1708666237833,-263.51064046,0.000291,2]
[314924122,1708666237893,-473.3383626,0.000291,2]
[314924123,1708666237906,-4921.290687,0.000291,2]
[314924124,1708666238013,-2032.26478765,0.000291,2]
[314924125,1708666238025,-1180.55249947,0.000291,2]
[314924126,1708666238037,-8413.58826035,0.000291,2]
[314924127,1708666238068,-775.44461026,0.000291,2]
[314924128,1708666238126,-1274.71647912,0.000291,2]
[314924133,1708666240982,-450.0,0.00028318,2]
[314924134,1708666241092,-769.9,0.00028318,2]
[314924135,1708666241104,-37.1,0.00028318,2]
[314924136,1708666241114,-775.91551,0.000291,2]
[314924146,1708666243110,-8587.9329018,0.000291,2]
[314924154,1708666245808,-216.0,0.00028251,2]
[314924155,1708666245818,-439.112,0.00028251,2]
[314924156,1708666245828,-1073.3,0.0002909,10]
[314924157,1708666245838,-828.68745089,0.000291,2]
[314924158,1708666328649,346.0,0.000291,120]
[314924185,1708667432156,-842.77924404,0.00025813,2]
[314924195,1708667438906,-1069.15210233,0.00025813,2]
[314924197,1708667438917,-633.19597941,0.00025814,2]
[314924199,1708667438927,-362.91967457,0.00025815,2]
[314924203,1708667439022,-122.8141436,0.00025815,2]
[314924204,1708667439032,-214.25,0.0002616,2]
[314924205,1708667439046,-1298.07,0.0002776,2]
[314924206,1708667439056,-2000.0,0.000279,2]
[314924207,1708667439066,-250.0,0.00027978,2]
[314924208,1708667439075,-355.2656916,0.00028004,2]
[314924209,1708667439126,-733.21350001,0.00028004,2]
[314924210,1708667439182,-890.61080839,0.00028004,2]
[314924211,1708667439192,-99.53271449,0.00028205,2]
[314924218,1708667441232,-345.86649632,0.00028205,2]
[314924222,1708667443071,-527.60914326,0.00028205,2]
[314924223,1708667443126,-3017.39525638,0.00028205,2]
[314924224,1708667443138,-5561.21543363,0.00028205,2]
[314924225,1708667446118,-29571.16855783,0.00028205,2]
[314924226,1708667446128,-1000.0,0.00028235,2]
[314924227,1708667446137,-955.0,0.00028251,2]
[314924228,1708667446147,-458.0,0.00028251,2]
[314924229,1708667446158,-1257.0,0.00028251,2]
[314924230,1708667446167,-216.0,0.00028251,2]
[314924231,1708667446176,-628.67,0.00028251,2]
[314924232,1708667446186,-339.956,0.00028251,2]
[314924233,1708667446195,-724.068,0.00028251,2]
[314924234,1708667446204,-269.57,0.00028303,2]
[314924235,1708667446214,-214.25,0.00028424,2]
[314924236,1708667446228,-1000.0,0.00028764,7]
[314924237,1708667446238,-157.45737105,0.00028764,6]
[314924238,1708667446247,-1000.0,0.00028764,7]
[314924239,1708667446257,-1000.0,0.00028764,7]
[314924240,1708667446266,-355.54865378,0.00028764,7]
[314924241,1708667446276,-222.0,0.00028845,2]
[314924242,1708667446285,-2177.907,0.000289,2]
[314924243,1708667446294,-393.674,0.000289,2]
[314924244,1708667446304,-47429.82357708,0.00028926,2]
[314924245,1708667446313,-564.73,0.0002899,2]
[314924246,1708667446323,-572.35991557,0.00028998,2]
[314924247,1708667446333,-1049.28241581,0.00028999,2]
[314924248,1708667446342,-344.29,0.00029,2]
[314924249,1708667446352,-315.99,0.00029,2]
[314924250,1708667446361,-156.61,0.00029,2]
[314924251,1708667446371,-423.57,0.00029,2]
[314924252,1708667446380,-502.03619067,0.00029,2]
[314924253,1708667446392,-1000.0,0.00029,2]
[314924254,1708667446401,-1000.0,0.00029,2]
[314924255,1708667446412,-1033.0,0.00029,2]
[314924256,1708667446421,-1005.0,0.00029,2]
[314924257,1708667446430,-97168.95814967,0.00029,2]
[314924258,1708667448186,-2667.41884817,0.00029,2]
[314924259,1708667448198,-2248.46080941,0.00029,2]
[314924260,1708667448213,-2305.1441571,0.00029,2]
[314924261,1708667448224,-5612.771706,0.00029,2]
[314924262,1708667448236,-2455.63,0.00029,2]
[314924263,1708667448248,-1446.921075,0.00029,2]
[314924264,1708667448260,-1304.20324908,0.00029,2]
[314924265,1708667448272,-4093.90005,0.00029,2]